bitfinex/quotes_SOLUSD_20220212
["timestamp","ask_amount","ask_price","bid_price","bid_amount"]
[1644683745155,0.04668872,96.247,96.246,13.11390296]
[1644683747769,0.04668872,96.247,96.246,10.49]
[1644683748159,0.04668872,96.247,96.246,0.25]
[1644683748560,0.04668872,96.247,96.242,26.35378539]
[1644683749863,0.04668872,96.247,96.243,0.25]
[1644683753564,0.04668872,96.247,96.244,2.62390296]
[1644683753966,0.04668872,96.247,96.245,36.52192668]
[1644683754367,0.04668872,96.247,96.246,2.62390296]
[1644683755368,0.04668872,96.247,96.245,36.52192668]
[1644683755769,0.04668872,96.247,96.23,18.21170296]
[1644683755968,0.04668872,96.247,96.23,2.62390296]
[1644683756168,0.04668872,96.247,96.22,15.04]
[1644683756770,0.04668872,96.247,96.221,45.81727333]
[1644683756975,0.04668872,96.247,96.221,46.06727333]
[1644683757176,0.04668872,96.247,96.222,5.195]
[1644683757672,0.04668872,96.247,96.222,7.81890296]
[1644683757872,0.04668872,96.247,96.23,15.5876]
[1644683758271,0.04668872,96.247,96.231,2.62390296]
[1644683759873,0.04668872,96.247,96.232,5.195]
[1644683760474,0.04668872,96.247,96.24,15.04]
[1644683760773,0.04668872,96.247,96.24,26.48]
[1644683760975,0.04668872,96.247,96.241,7.81890296]
[1644683761376,0.04668872,96.247,96.242,30.55121557]
[1644683761578,4.00242122,96.294,96.244,24.0]
[1644683761775,4.00242122,96.294,96.25,15.5828]
[1644683761976,4.00242122,96.294,96.25,30.6228]
[1644683762375,4.00242122,96.294,96.251,2.62390296]
[1644683762979,2.93586922,96.303,96.251,2.62390296]
[1644683763878,2.93586922,96.3,96.251,2.62390296]
[1644683764076,2.43586922,96.301,96.251,2.62390296]
[1644683764278,4.03697467,96.309,96.26,15.5826]
[1644683764477,4.03697467,96.309,96.26,30.6226]
[1644683764680,4.03697467,96.309,96.261,2.62390296]
[1644683764899,4.03697467,96.309,96.261,7.81590296]
[1644683765377,41.8657737,96.308,96.262,41.98204978]
[1644683765577,4.03697467,96.307,96.262,39.35814682]
[1644683765779,5.192,96.306,96.262,39.35814682]
[1644683765977,4.03697467,96.307,96.262,39.35814682]
[1644683766181,4.03697467,96.305,96.262,39.35814682]
[1644683766678,4.03697467,96.304,96.263,0.25]
[1644683767177,4.03697467,96.303,96.263,0.25]
[1644683767382,5.192,96.303,96.263,0.25]
[1644683767584,4.03697467,96.302,96.263,0.25]
[1644683767782,4.03697467,96.307,96.263,0.25]
[1644683768384,4.03697467,96.309,96.263,0.25]
[1644683769187,4.03697467,96.327,96.264,2.62390296]
[1644683769384,4.03697467,96.329,96.264,2.62390296]
[1644683769784,13.23716151,96.328,96.264,2.62390296]
[1644683769988,9.22897467,96.327,96.263,0.25]
[1644683770188,4.03697467,96.326,96.263,0.25]
[1644683770386,5.192,96.325,96.263,0.25]
[1644683770591,4.03697467,96.324,96.264,2.62390296]
[1644683770787,17.27413618,96.324,96.265,5.192]
[1644683770986,4.03697467,96.323,96.27,15.04]
[1644683771187,4.03697467,96.323,96.271,5.192]
[1644683771388,4.03697467,96.328,96.271,7.81590296]
[1644683771587,4.03697467,96.328,96.28,15.5794]
[1644683771789,4.03697467,96.328,96.281,5.191]
[1644683771987,4.03697467,96.328,96.281,7.81490296]
[1644683772188,4.03697467,96.328,96.282,2.62390296]
[1644683772709,4.03697467,96.328,96.283,31.95535987]
[1644683773108,4.03697467,96.328,96.284,2.62390296]
[1644683773507,5.191,96.358,96.284,2.62390296]
[1644683773508,5.191,96.358,96.29,15.578]
[1644683773706,43.71420035,96.359,96.3,15.04]
[1644683773707,19.30780035,96.359,96.3,15.04]
[1644683773909,4.02238648,96.357,96.302,44.35590793]
[1644683774112,21.03250099,96.369,96.303,26.0]
[1644683774310,4.02219916,96.368,96.303,5.19]
[1644683774509,4.42620279,96.387,96.303,7.81390296]
[1644683774711,4.192,96.398,96.304,2.62390296]
[1644683774909,4.02219916,96.397,96.306,29.29943843]
[1644683775110,4.02219916,96.397,96.32,15.04]
[1644683775312,4.02219916,96.399,96.34,15.5686]
[1644683775510,4.02219916,96.399,96.341,29.29943843]
[1644683775713,4.02219916,96.4,96.341,29.29943843]
[1644683776011,4.02219916,96.399,96.343,104.0]
[1644683776212,4.02219916,96.414,96.344,5.188]
[1644683776411,4.02219916,96.415,96.344,7.81190296]
[1644683776610,4.02219916,96.415,96.35,15.5681]
[1644683776811,34.79891143,96.413,96.36,15.04]
[1644683777013,4.041,96.412,96.36,15.04]
[1644683777214,0.25,96.411,96.36,15.04]
[1644683777613,4.02219916,96.41,96.36,15.04]
[1644683778016,4.02219916,96.412,96.36,15.04]
[1644683778714,34.79891143,96.413,96.361,0.25]
[1644683778917,3.94287318,96.412,96.361,0.25]
[1644683779716,3.94287318,96.415,96.361,0.25]
[1644683780122,24.6513,96.416,96.361,0.25]
[1644683780320,24.6513,96.416,96.362,5.187]
[1644683780720,38.82914635,96.415,96.362,5.187]
[1644683781922,4.248,96.414,96.361,0.25]
[1644683783226,24.6513,96.416,96.37,15.5643]
[1644683783427,24.6513,96.416,96.37,30.6043]
[1644683784025,36.84990743,96.415,96.37,15.04]
[1644683784226,41.33690743,96.415,96.37,15.04]
[1644683785826,4.233,96.414,96.37,15.04]
[1644683787127,37.09990743,96.415,96.37,15.04]
[1644683788331,4.248,96.414,96.37,15.04]
[1644683788531,37.09990743,96.415,96.37,15.04]
[1644683789732,37.09990743,96.415,96.351,5.187]
[1644683790132,37.09990743,96.415,96.352,0.25]
[1644683790331,37.09990743,96.415,96.353,5.187]
[1644683790735,37.09990743,96.415,96.354,29.53876105]
[1644683790932,37.09990743,96.415,96.355,5.187]
[1644683791151,36.59990743,96.415,96.355,5.187]
[1644683792235,36.59990743,96.415,96.36,15.04]
[1644683792436,36.59990743,96.415,96.361,5.187]
[1644683793135,24.6513,96.416,96.361,5.187]
[1644683793341,24.6513,96.416,96.362,2.62390296]
[1644683794844,24.6513,96.416,96.37,15.5645]
[1644683795044,24.6513,96.416,96.37,15.04]
[1644683796951,4.245,96.415,96.37,15.04]
[1644683797646,4.19105826,96.414,96.37,15.04]
[1644683797850,24.6513,96.416,96.37,15.04]
[1644683798047,4.248,96.415,96.371,0.25]
[1644683798451,3.94798025,96.414,96.371,0.25]
[1644683798659,4.248,96.413,96.371,0.25]
[1644683798861,46.7804764,96.412,96.371,0.25]
[1644683799160,3.94798025,96.411,96.371,0.25]
[1644683799561,3.94798025,96.415,96.371,0.25]
[1644683801960,4.247,96.414,96.371,0.25]
[1644683802460,3.94798025,96.415,96.371,0.25]
[1644683802662,3.94798025,96.413,96.371,0.25]
[1644683802861,3.94798025,96.415,96.371,0.25]
[1644683804065,4.235,96.414,96.371,0.25]
[1644683804265,3.94798025,96.413,96.371,0.25]
[1644683804465,3.94798025,96.413,96.372,5.187]
[1644683804665,4.42620279,96.429,96.372,5.187]
[1644683805267,45.58849993,96.428,96.372,5.187]
[1644683805666,3.94798025,96.427,96.372,5.187]
[1644683806067,3.94798025,96.43,96.372,5.187]
[1644683809678,4.194,96.429,96.372,5.187]
[1644683809881,3.94798025,96.428,96.372,5.187]
[1644683810280,3.94798025,96.43,96.372,5.187]
[1644683811881,3.94798025,96.43,96.38,15.5632]
[1644683812082,3.94798025,96.43,96.382,1.48941162]
[1644683812384,3.94798025,96.43,96.381,5.186]
[1644683816089,4.269,96.429,96.38,30.6032]
[1644683816296,3.94798025,96.428,96.38,30.6032]
[1644683816493,3.94798025,96.428,96.382,2.62390296]
[1644683816699,3.94798025,96.428,96.39,15.5611]
[1644683816896,3.94798025,96.434,96.391,5.186]
[1644683817193,50.0,96.435,96.391,7.80990296]
[1644683817409,50.0,96.435,96.392,2.62390296]
[1644683817611,50.0,96.435,96.393,5.184]
[1644683818210,50.0,96.435,96.39,15.04]
[1644683818211,50.0,96.435,96.391,5.184]
[1644683818415,4.104,96.479,96.4,15.5599]
[1644683818613,24.4038,96.509,96.4,15.5599]
[1644683818614,4.42620279,96.507,96.4,15.5599]
[1644683818813,24.4038,96.509,96.41,15.04]
[1644683819016,3.95933327,96.508,96.41,15.04]
[1644683819314,3.95933327,96.508,96.43,15.5545]
[1644683819617,41.83861966,96.515,96.411,106.62390296]
[1644683819618,3.95933327,96.514,96.44,15.04]
[1644683819815,4.243,96.507,96.45,15.04]
[1644683820013,4.245,96.513,96.45,15.04]
[1644683820215,26.7803,96.533,96.451,5.182]
[1644683820415,3.94869687,96.532,96.46,15.5504]
[1644683820814,0.25,96.531,96.46,15.5504]
[1644683821016,3.94869687,96.53,96.46,15.5504]
[1644683821219,45.05284816,96.529,96.46,15.5504]
[1644683821420,3.94869687,96.528,96.46,15.5504]
[1644683821818,0.25,96.527,96.46,15.5504]
[1644683822016,4.249,96.526,96.46,15.5504]
[1644683822219,0.25,96.525,96.46,15.5504]
[1644683822419,4.19869687,96.525,96.46,15.5504]
[1644683822618,3.94869687,96.524,96.46,15.5504]
[1644683822819,0.25,96.523,96.46,15.5504]
[1644683823018,3.94869687,96.522,96.46,15.5504]
[1644683823220,0.25,96.521,96.46,15.5504]
[1644683823419,3.94869687,96.52,96.46,15.5504]
[1644683823817,3.94869687,96.527,96.46,15.5504]
[1644683824521,3.94869687,96.527,96.461,2.62390296]
[1644683824726,4.241,96.553,96.47,15.04]
[1644683825020,4.238,96.555,96.48,15.5466]
[1644683825220,4.234,96.552,96.48,15.5466]
[1644683825421,3.94064995,96.554,96.48,15.5466]
[1644683825621,43.14138202,96.55,96.48,15.5466]
[1644683825823,3.94064995,96.549,96.48,15.5466]
[1644683826022,8.15864995,96.549,96.48,30.5866]
[1644683826225,80.30700279,96.58,96.5,15.5414]
[1644683826226,4.214,96.572,96.5,15.5414]
[1644683826426,4.226,96.579,96.501,104.0]
[1644683826625,4.237,96.607,96.51,15.04]
[1644683826827,0.52007405,96.608,96.51,15.04]
[1644683827025,50.73967242,96.607,96.511,5.178]
[1644683827229,50.73967242,96.607,96.512,104.0]
[1644683827625,50.73967242,96.607,96.52,15.5362]
[1644683827828,23.8148,96.606,96.53,15.04]
[1644683828024,1.4534227,96.588,96.53,15.04]
[1644683828225,40.21181794,96.587,96.53,15.04]
[1644683828424,40.21181794,96.587,96.531,7.80190296]
[1644683828824,41.66524064,96.587,96.531,5.178]
[1644683829024,1.4534227,96.579,96.531,5.178]
[1644683829226,41.66524064,96.587,96.531,5.178]
[1644683829426,40.21181794,96.587,96.531,5.178]
[1644683830024,4.217,96.586,96.531,5.178]
[1644683830226,4.217,96.586,96.532,0.25]
[1644683830426,40.21181794,96.587,96.53,15.04]
[1644683830831,4.136,96.586,96.53,15.04]
[1644683831027,12.516,96.586,96.502,5.178]
[1644683831229,1.4534227,96.576,96.486,5.178]
[1644683831428,1.4534227,96.568,96.486,5.178]
[1644683831631,38.24883519,96.567,96.486,5.178]
[1644683831830,38.24883519,96.567,96.47,15.04]
[1644683831831,0.25,96.566,96.47,15.04]
[1644683832029,3.978,96.566,96.471,38.29475129]
[1644683832330,3.978,96.566,96.471,43.47475129]
[1644683832331,2.62390296,96.565,96.471,43.47475129]
[1644683832528,4.126,96.564,96.471,43.47475129]
[1644683833028,2.62390296,96.563,96.471,5.18]
[1644683833628,4.07732566,96.563,96.471,5.18]
[1644683833827,4.07732566,96.563,96.472,0.25]
[1644683834028,4.274,96.566,96.472,38.13048212]
[1644683834832,2.62390296,96.565,96.472,0.25]
[1644683835530,4.07732566,96.565,96.472,0.25]
[1644683835731,2.62390296,96.565,96.472,0.25]
[1644683836337,1.4534227,96.564,96.472,0.25]
[1644683836536,4.246,96.563,96.473,5.18]
[1644683836733,1.4534227,96.562,96.47,30.5872]
[1644683836933,4.217,96.561,96.48,15.5459]
[1644683837133,4.188,96.562,96.481,5.18]
[1644683837336,4.159,96.56,96.481,5.18]
[1644683837533,4.13,96.565,96.481,5.18]
[1644683837734,6.72490296,96.566,96.48,15.04]
[1644683837933,5.5254227,96.564,96.481,0.25]
[1644683838232,1.4534227,96.561,96.481,0.25]
[1644683838436,1.4534227,96.562,96.481,0.25]
[1644683838733,15.5499,96.56,96.481,0.25]
[1644683838936,4.243,96.559,96.481,0.25]
[1644683839138,4.243,96.559,96.48,15.04]
[1644683839335,1.4534227,96.551,96.442,5.18]
[1644683839536,1.4534227,96.535,96.442,5.18]
[1644683839734,10.5234227,96.535,96.442,5.18]
[1644683840036,1.4534227,96.518,96.442,5.18]
[1644683840233,15.5564,96.52,96.442,5.18]
[1644683840635,17.0098227,96.52,96.442,5.18]
[1644683840835,1.4534227,96.517,96.442,5.18]
[1644683841041,1.4534227,96.505,96.376,43.06364324]
[1644683841338,15.5632,96.48,96.377,4.06014]
[1644683841636,1.4534227,96.476,96.377,4.06014]
[1644683841835,1.4534227,96.471,96.377,4.06014]
[1644683842034,4.25,96.47,96.377,4.06014]
[1644683842238,104.0,96.468,96.377,4.06014]
[1644683842435,4.252,96.467,96.377,4.06014]
[1644683842644,6.87590296,96.467,96.377,4.06014]
[1644683842835,15.5678,96.45,96.377,4.06014]
[1644683843037,4.255,96.449,96.377,4.06014]
[1644683843236,39.42180982,96.448,96.377,4.06014]
[1644683844338,39.42180982,96.448,96.378,0.25]
[1644683844539,39.42180982,96.448,96.38,15.04]
[1644683845339,1.4534227,96.472,96.381,5.184]
[1644683845538,1.4534227,96.472,96.381,7.80790296]
[1644683845741,1.4534227,96.493,96.381,7.80790296]
[1644683845940,1.4534227,96.49,96.381,7.80790296]
[1644683846141,1.4534227,96.49,96.382,2.62390296]
[1644683846339,48.11962558,96.478,96.383,5.184]
[1644683846539,48.11962558,96.478,96.384,36.22766216]
[1644683846741,0.25,96.477,96.385,5.184]
[1644683846941,0.25,96.477,96.4,15.04]
[1644683847241,0.25,96.477,96.401,7.03417233]
[1644683847441,4.152,96.476,96.401,7.03417233]
[1644683847645,1.4534227,96.474,96.402,109.184]
[1644683847845,1.4534227,96.474,96.402,121.74790296]
[1644683848042,1.4534227,96.501,96.41,15.5572]
[1644683848342,1.4534227,96.507,96.42,15.04]
[1644683848540,41.97827058,96.506,96.421,41.41066216]
[1644683848742,41.97827058,96.506,96.421,44.03456512]
[1644683849141,1.4534227,96.505,96.421,44.03456512]
[1644683849340,1.4534227,96.505,96.43,15.5506]
[1644683849543,1.7034227,96.504,96.44,15.04]
[1644683849842,1.4534227,96.503,96.441,7.03417233]
[1644683850046,1.4534227,96.502,96.441,7.03417233]
[1644683850249,1.4534227,96.502,96.44,15.04]
[1644683850645,1.4534227,96.496,96.43,15.5506]
[1644683850847,41.97827058,96.506,96.43,15.5506]
[1644683850848,5.6984227,96.495,96.43,15.5506]
[1644683851045,1.4534227,96.498,96.431,5.183]
[1644683851247,1.4534227,96.498,96.432,33.76059891]
[1644683851447,4.154,96.504,96.432,33.76059891]
[1644683851448,1.4534227,96.501,96.44,30.5929]
[1644683851647,23.5729,96.519,96.44,30.5929]
[1644683851648,1.4534227,96.506,96.44,30.5929]
[1644683851847,1.4534227,96.507,96.441,5.182]
[1644683852046,1.4534227,96.508,96.441,5.182]
[1644683852445,1.4534227,96.507,96.441,5.182]
[1644683852646,1.4534227,96.507,96.45,15.5512]
[1644683852849,1.4534227,96.508,96.451,5.182]
[1644683853049,1.4534227,96.508,96.451,7.80590296]
[1644683853247,1.4534227,96.515,96.452,2.62390296]
[1644683853649,1.4534227,96.515,96.453,9.50123558]
[1644683853848,50.31215226,96.517,96.453,9.50123558]
[1644683853849,1.4534227,96.514,96.453,9.50123558]
[1644683854048,1.4534227,96.513,96.454,2.62390296]
[1644683854248,1.4534227,96.514,96.454,2.62390296]
[1644683854449,1.4534227,96.517,96.454,2.62390296]
[1644683854650,1.4534227,96.516,96.453,9.50123558]
[1644683854850,1.4534227,96.515,96.454,2.62390296]
[1644683855453,1.4534227,96.515,96.45,15.04]
[1644683855651,1.4534227,96.508,96.45,15.04]
[1644683855850,1.4534227,96.507,96.45,15.04]
[1644683856152,1.4534227,96.505,96.45,15.04]
[1644683856450,1.4534227,96.503,96.451,38.67519092]
[1644683856651,1.4534227,96.503,96.451,41.29909388]
[1644683856853,1.4534227,96.505,96.451,41.29909388]
[1644683857150,1.4534227,96.507,96.452,2.62390296]
[1644683857351,1.4534227,96.504,96.451,38.67519092]
[1644683857552,1.4534227,96.505,96.452,0.25]
[1644683858152,1.4534227,96.503,96.45,15.04]
[1644683858352,1.4534227,96.502,96.429,2.62390296]
[1644683858552,1.4534227,96.491,96.413,5.182]
[1644683858775,1.4534227,96.483,96.413,5.182]
[1644683858974,1.4534227,96.483,96.414,31.98968123]
[1644683859175,1.4534227,96.483,96.414,34.61358419]
[1644683859377,1.4534227,96.488,96.415,2.62390296]
[1644683859675,1.4534227,96.49,96.42,15.04]
[1644683859878,1.4534227,96.491,96.42,15.04]
[1644683860076,1.4534227,96.491,96.421,7.80690296]
[1644683860481,1.4534227,96.492,96.43,15.5546]
[1644683860677,23.3026,96.497,96.431,5.183]
[1644683861178,23.3026,96.497,96.432,11.27215326]
[1644683861381,23.3026,96.497,96.433,5.183]
[1644683861578,24.2560227,96.497,96.44,15.5531]
[1644683861779,22.8026,96.497,96.441,5.183]
[1644683862377,1.4534227,96.499,96.442,2.62390296]
[1644683862579,1.4534227,96.499,96.45,15.551]
[1644683862780,26.8713,96.549,96.46,15.04]
[1644683862781,1.4534227,96.516,96.46,15.04]
[1644683862982,1.4534227,96.516,96.461,5.181]
[1644683863380,1.4534227,96.514,96.46,15.04]
[1644683863779,1.4534227,96.504,96.46,15.04]
[1644683863980,1.4534227,96.502,96.46,15.04]
[1644683864580,4.245,96.514,96.46,15.04]
[1644683865181,4.245,96.514,96.461,0.25]
[1644683865383,4.245,96.514,96.46,15.04]
[1644683865586,4.245,96.514,96.42,30.5953]
[1644683865783,4.245,96.514,96.41,15.04]
[1644683865784,26.63960296,96.513,96.41,15.04]
[1644683865983,4.245,96.512,96.4,15.04]
[1644683866282,1.46319266,96.478,96.401,23.576]
[1644683866586,1.46319266,96.476,96.413,32.99624663]
[1644683866783,1.46319266,96.476,96.414,0.25]
[1644683866985,24.82619266,96.476,96.414,0.25]
[1644683867187,1.46319266,96.47,96.414,0.25]
[1644683867384,1.46319266,96.47,96.414,5.434]
[1644683867784,1.46319266,96.471,96.414,5.434]
[1644683867984,1.46319266,96.472,96.414,5.434]
[1644683868191,1.46319266,96.478,96.42,15.5562]
[1644683868386,1.46319266,96.483,96.421,5.184]
[1644683868584,1.46319266,96.483,96.421,7.80790296]
[1644683868784,1.46319266,96.484,96.422,2.62390296]
[1644683869185,1.46319266,96.493,96.422,2.62390296]
[1644683869786,1.46319266,96.493,96.431,10.26558786]
[1644683869986,1.46319266,96.494,96.431,10.26558786]
[1644683870187,1.46319266,96.494,96.432,2.62390296]
[1644683870589,1.46319266,96.499,96.432,2.62390296]
[1644683870794,1.46319266,96.499,96.44,15.5524]
[1644683870989,1.46319266,96.503,96.45,15.04]
[1644683871190,1.46319266,96.505,96.451,32.99624663]
[1644683871389,1.46319266,96.502,96.45,15.04]
[1644683871891,1.46319266,96.496,96.45,15.04]
[1644683872189,5.71119266,96.495,96.423,28.9839]
[1644683872390,45.09401261,96.494,96.431,38.97972225]
[1644683872589,46.55720527,96.494,96.432,5.183]
[1644683872789,46.55720527,96.494,96.44,15.552]
[1644683872989,1.46319266,96.49,96.423,23.8019]
[1644683873188,1.46319266,96.49,96.422,26.66240296]
[1644683873391,1.46319266,96.486,96.422,24.0385]
[1644683873590,1.46319266,96.485,96.422,24.0385]
[1644683873792,1.46319266,96.485,96.423,39.33196658]
[1644683873991,1.46319266,96.476,96.42,15.04]
[1644683874192,1.46319266,96.475,96.42,15.04]
[1644683874395,1.46319266,96.478,96.421,0.25]
[1644683874592,1.46319266,96.479,96.421,0.25]
[1644683874791,1.46319266,96.477,96.421,0.25]
[1644683874994,24.1189,96.493,96.421,42.70521065]
[1644683874995,1.46319266,96.473,96.421,42.70521065]
[1644683875196,1.46319266,96.472,96.421,42.70521065]
[1644683875395,1.46319266,96.472,96.42,30.5949]
[1644683875596,1.46319266,96.472,96.421,2.62390296]
[1644683875798,1.46319266,96.471,96.421,7.80790296]
[1644683875999,1.46319266,96.479,96.43,15.5547]
[1644683876197,1.46319266,96.476,96.43,30.5947]
[1644683876597,1.46319266,96.475,96.431,43.19025578]
[1644683876797,1.46319266,96.475,96.431,48.62225578]
[1644683877598,2.92638532,96.499,96.431,5.182]
[1644683877599,1.46319266,96.472,96.431,5.182]
[1644683877799,1.46319266,96.469,96.431,5.182]
[1644683877999,1.46319266,96.456,96.431,5.182]
[1644683878198,1.46319266,96.453,96.431,5.182]
[1644683878600,1.46319266,96.451,96.431,5.182]
[1644683878800,47.52443284,96.452,96.431,5.182]
[1644683878999,46.06124018,96.452,96.431,5.182]
[1644683879199,1.46319266,96.454,96.431,5.182]
[1644683879401,1.46319266,96.458,96.431,5.182]
[1644683879601,1.46319266,96.463,96.431,5.182]
[1644683880001,1.46319266,96.464,96.431,5.182]
[1644683880400,1.46319266,96.462,96.431,5.182]
[1644683881104,1.46319266,96.459,96.431,5.182]
[1644683881301,1.46319266,96.462,96.397,5.183]
[1644683881501,1.46319266,96.462,96.398,36.11069503]
[1644683881702,1.46319266,96.46,96.399,5.184]
[1644683881903,1.46319266,96.459,96.399,5.184]
[1644683882103,1.46319266,96.446,96.374,5.184]
[1644683882305,1.46319266,96.436,96.363,5.184]
[1644683882504,1.46319266,96.435,96.365,5.186]
[1644683882705,1.46319266,96.435,96.361,5.186]
[1644683882906,43.21187347,96.434,96.37,15.5651]
[1644683885027,1.46319266,96.433,96.37,15.5651]
[1644683885326,4.245,96.432,96.371,0.25]
[1644683885728,4.245,96.432,96.363,5.186]
[1644683886028,1.46319266,96.431,96.363,5.186]
[1644683886229,1.46319266,96.429,96.363,5.186]
[1644683886428,1.46319266,96.43,96.363,5.186]
[1644683887127,1.46319266,96.429,96.363,5.186]
[1644683887332,4.245,96.428,96.36,15.5674]
[1644683887528,5.70819266,96.428,96.341,5.187]
[1644683887728,1.46319266,96.422,96.33,66.9339]
[1644683887930,4.245,96.421,96.34,15.5694]
[1644683888233,108.245,96.421,96.326,5.187]
[1644683888428,108.245,96.421,96.314,2.62390296]
[1644683888429,1.46319266,96.414,96.314,2.62390296]
[1644683888635,15.5788,96.39,96.273,48.2463]
[1644683888832,4.748,96.389,96.275,5.189]
[1644683889030,4.748,96.389,96.274,5.19]
[1644683889233,0.25,96.388,96.28,15.5793]
[1644683889431,5.19,96.387,96.281,38.68768039]
[1644683889632,15.5794,96.38,96.281,38.68768039]
[1644683889832,5.19,96.379,96.281,38.68768039]
[1644683890032,22.6097,96.378,96.281,38.68768039]
[1644683890234,5.19,96.377,96.282,5.19]
[1644683890538,5.19,96.377,96.29,15.5784]
[1644683890732,23.3396,96.376,96.29,15.5784]
[1644683890932,5.19,96.375,96.291,5.19]
[1644683891337,46.99660044,96.388,96.3,15.04]
[1644683891338,5.19,96.387,96.3,15.04]
[1644683891633,46.99660044,96.388,96.311,4.5741541]
[1644683891832,52.6938,96.425,96.32,15.04]
[1644683892036,47.5048,96.425,96.32,15.04]
[1644683892234,5.188,96.424,96.32,15.04]
[1644683892631,0.25,96.423,96.32,15.04]
[1644683892934,47.5048,96.425,96.33,15.5703]
[1644683893135,47.5048,96.425,96.341,104.0]
[1644683893334,63.62649378,96.429,96.341,104.0]
[1644683893537,63.62649378,96.429,96.342,5.187]
[1644683893735,40.14502645,96.428,96.343,38.68768039]
[1644683893936,45.33202645,96.428,96.344,5.187]
[1644683894138,1.46319266,96.45,96.344,5.187]
[1644683894339,1.46319266,96.45,96.36,15.5658]
[1644683894538,1.46319266,96.463,96.36,30.6058]
[1644683894737,1.46319266,96.462,96.36,30.6058]
[1644683894941,1.46319266,96.465,96.36,30.6058]
[1644683895138,40.1041081,96.464,96.361,4.5741541]
[1644683895338,1.46319266,96.459,96.38,15.5647]
[1644683895540,5.184,96.458,96.35,51.8857]
[1644683895741,1.46319266,96.448,96.35,15.04]
[1644683896040,1.46319266,96.446,96.35,15.04]
[1644683896244,1.46319266,96.446,96.344,5.187]
[1644683896445,46.2225407,96.445,96.35,12.46]
[1644683896644,46.2225407,96.445,96.361,9.12393958]
[1644683896843,5.186,96.445,96.361,9.12393958]
[1644683897045,1.46319266,96.456,96.362,5.186]
[1644683897246,5.186,96.449,96.362,53.2412]
[1644683897446,1.46319266,96.459,96.362,48.0552]
[1644683897645,5.186,96.456,96.362,48.0552]
[1644683897845,1.46319266,96.454,96.38,15.5653]
[1644683898048,1.46319266,96.452,96.38,15.5653]
[1644683898245,6.64719266,96.453,96.38,15.5653]
[1644683898445,1.46319266,96.451,96.38,15.5653]
[1644683898647,5.184,96.45,96.38,15.5653]
[1644683898846,1.46319266,96.449,96.38,15.5653]
[1644683899053,5.184,96.448,96.38,15.5653]
[1644683899247,46.85659044,96.455,96.38,15.5653]
[1644683900049,5.184,96.454,96.38,15.5653]
[1644683901652,1.46319266,96.453,96.38,15.5653]
[1644683902049,1.46319266,96.452,96.38,15.5653]
[1644683902252,1.46319266,96.45,96.38,15.5653]
[1644683902652,1.46319266,96.449,96.38,15.5653]
[1644683902852,1.46319266,96.448,96.38,15.5653]
[1644683903053,6.64719266,96.447,96.38,15.5653]
[1644683903253,5.184,96.447,96.38,15.5653]
[1644683903683,1.46319266,96.449,96.38,15.5653]
[1644683903855,5.184,96.448,96.38,15.5653]
[1644683904055,1.71319266,96.451,96.38,15.5653]
[1644683904259,1.21319266,96.451,96.38,15.5653]
[1644683904456,5.184,96.45,96.38,15.5653]
[1644683904659,5.184,96.454,96.38,15.5653]
[1644683905057,5.184,96.454,96.381,36.15180704]
[1644683905257,46.85659044,96.455,96.39,15.5643]
[1644683905461,4.38957798,96.501,96.39,15.5643]
[1644683905462,5.184,96.453,96.39,15.5643]
[1644683905659,5.184,96.467,96.391,5.184]
[1644683905859,5.184,96.481,96.391,38.6003]
[1644683906061,23.9576,96.48,96.392,2.62390296]
[1644683906266,23.9576,96.48,96.393,5.184]
[1644683906459,34.43365335,96.479,96.393,5.184]
[1644683906659,34.43365335,96.479,96.394,2.62390296]
[1644683907061,24.9289,96.504,96.395,5.184]